fUSD/lending_fUSD_20260408
["ID","MTS","AMOUNT","RATE_DAILY","PERIOD"]
[420022282,1775621455358,-278.326289,0.00016,2]
[420022283,1775621455368,-5800.0,0.00016,2]
[420022284,1775621455378,-151.0,0.00016,2]
[420022285,1775621455387,-151.0,0.00016,2]
[420022286,1775621455397,-159.385177,0.00016,2]
[420022287,1775621455407,-235.253801,0.00016,2]
[420022288,1775621455418,-235.253801,0.00016,2]
[420022289,1775621455428,-235.253801,0.00016,2]
[420022290,1775621455439,-235.253801,0.00016,2]
[420022291,1775621455448,-235.253801,0.00016,2]
[420022292,1775621455458,-235.253801,0.00016,2]
[420022293,1775621455468,-235.253801,0.00016,2]
[420022294,1775621455478,-235.253801,0.00016,2]
[420022295,1775621455489,-235.253801,0.00016,2]
[420022296,1775621455499,-235.253801,0.00016,2]
[420022297,1775621455509,-235.253801,0.00016,2]
[420022298,1775621455520,-235.253792,0.00016,2]
[420022299,1775621455530,-151.0,0.00016,2]
[420022300,1775621455540,-151.0,0.00016,2]
[420022301,1775621455550,-151.0,0.00016,2]
[420022302,1775621455560,-151.0,0.00016,2]
[420022303,1775621455570,-151.0,0.00016,2]
[420022304,1775621455580,-151.0,0.00016,2]
[420022305,1775621455591,-185.880254,0.00016,2]
[420022306,1775621455601,-152.273425,0.00016,2]
[420022307,1775621455610,-151.0,0.00016,2]
[420022308,1775621455620,-151.0,0.00016,2]
[420022309,1775621455630,-151.0,0.00016,2]
[420022310,1775621455640,-151.0,0.00016,2]
[420022311,1775621455652,-151.0,0.00016,2]
[420022312,1775621455661,-151.0,0.00016,2]
[420022313,1775621455671,-151.0,0.00016,2]
[420022314,1775621455680,-151.0,0.00016,2]
[420022315,1775621455690,-151.0,0.00016,2]
[420022316,1775621455699,-151.0,0.00016,2]
[420022317,1775621455708,-151.0,0.00016,2]
[420022318,1775621455719,-151.0,0.00016,2]
[420022319,1775621455728,-151.0,0.00016,2]
[420022320,1775621455935,-286.006256,0.00016,2]
[420022321,1775621455944,-151.0,0.00016,2]
[420022322,1775621455954,-151.0,0.00016,2]
[420022323,1775621455963,-151.0,0.00016,2]
[420022324,1775621455973,-207.253336,0.00016,2]
[420022325,1775621455982,-200.0,0.00016,2]
[420022326,1775621455991,-226.261666,0.00016,2]
[420022327,1775621456000,-226.261666,0.00016,2]
[420022328,1775621456009,-226.261666,0.00016,2]
[420022329,1775621456018,-226.261666,0.00016,2]
[420022330,1775621456028,-226.261666,0.00016,2]
[420022331,1775621456037,-226.261666,0.00016,2]
[420022332,1775621456047,-226.261666,0.00016,2]
[420022333,1775621456056,-226.261666,0.00016,2]
[420022334,1775621456065,-226.261666,0.00016,2]
[420022335,1775621456080,-226.261666,0.00016,2]
[420022336,1775621456091,-226.261666,0.00016,2]
[420022337,1775621456101,-226.261671,0.00016,2]
[420022338,1775621456110,-151.0,0.00016,2]
[420022339,1775621456119,-151.0,0.00016,2]
[420022340,1775621456129,-151.0,0.00016,2]
[420022341,1775621456138,-151.0,0.00016,2]
[420022342,1775621456148,-151.0,0.00016,2]
[420022343,1775621456158,-151.0,0.00016,2]
[420022344,1775621456167,-151.0,0.00016,2]
[420022345,1775621456177,-151.0,0.00016,2]
[420022346,1775621456187,-206.613888,0.00016,2]
[420022347,1775621456196,-151.0,0.00016,2]
[420022348,1775621456206,-151.0,0.00016,2]
[420022349,1775621456215,-151.0,0.00016,2]
[420022350,1775621456225,-151.0,0.00016,2]
[420022351,1775621456235,-235.330011,0.00016,2]
[420022352,1775621456244,-319.450739,0.00016,2]
[420022353,1775621456254,-319.450739,0.00016,2]
[420022354,1775621456264,-319.450739,0.00016,2]
[420022355,1775621456273,-319.450739,0.00016,2]
[420022356,1775621456282,-319.450739,0.00016,2]
[420022357,1775621456293,-319.450739,0.00016,2]
[420022358,1775621456303,-319.450739,0.00016,2]
[420022359,1775621456313,-319.450739,0.00016,2]
[420022360,1775621456324,-319.450739,0.00016,2]
[420022361,1775621456334,-319.450739,0.00016,2]
[420022362,1775621456345,-319.450739,0.00016,2]
[420022363,1775621456355,-319.450739,0.00016,2]
[420022364,1775621456365,-680.691086,0.00016,2]
[420022365,1775621456374,-680.691086,0.00016,2]
[420022366,1775621456384,-680.691086,0.00016,2]
[420022367,1775621456394,-680.691086,0.00016,2]
[420022368,1775621456403,-680.691086,0.00016,2]
[420022369,1775621456414,-680.691086,0.00016,2]
[420022370,1775621456424,-933.575497,0.00016,2]
[420022371,1775621456434,-933.575497,0.00016,2]
[420022372,1775621456443,-680.691086,0.00016,2]
[420022373,1775621456454,-151.0,0.00016,2]
[420022374,1775621456464,-933.575497,0.00016,2]
[420022375,1775621456474,-680.691086,0.00016,2]
[420022376,1775621456484,-151.0,0.00016,2]
[420022377,1775621456493,-680.691086,0.00016,2]
[420022378,1775621456504,-151.0,0.00016,2]
[420022379,1775621456513,-933.575497,0.00016,2]
[420022380,1775621456523,-933.575497,0.00016,2]
[420022381,1775621456533,-151.0,0.00016,2]
[420022382,1775621456543,-933.575497,0.00016,2]
[420022383,1775621456553,-680.691086,0.00016,2]
[420022384,1775621456562,-933.575497,0.00016,2]
[420022385,1775621456572,-680.691086,0.00016,2]
[420022386,1775621456582,-933.575497,0.00016,2]
[420022387,1775621456592,-680.691077,0.00016,2]
[420022388,1775621456602,-933.575497,0.00016,2]
[420022389,1775621456612,-933.575497,0.00016,2]
[420022390,1775621456622,-933.575497,0.00016,2]
[420022391,1775621456631,-933.575492,0.00016,2]
[420022392,1775621456641,-153.180645,0.00016,2]
[420022393,1775621456651,-153.180645,0.00016,2]
[420022394,1775621456660,-153.180645,0.00016,2]
[420022395,1775621456670,-153.180645,0.00016,2]
[420022396,1775621456679,-153.180645,0.00016,2]
[420022397,1775621456689,-153.180645,0.00016,2]
[420022398,1775621456700,-153.180645,0.00016,2]
[420022399,1775621456710,-153.180645,0.00016,2]
[420022400,1775621456719,-377987.660796,0.00016,2]
[420022401,1775621456730,-153.180645,0.00016,2]
[420022402,1775621456740,-153.180645,0.00016,2]
[420022403,1775621456750,-153.180645,0.00016,2]
[420022404,1775621456760,-153.180648,0.00016,2]
[420022405,1775621456770,-153.242235,0.00016,2]
[420022406,1775621456780,-153.242235,0.00016,2]
[420022407,1775621456789,-2000.0,0.00016,2]
[420022408,1775621456798,-2000.0,0.00016,2]
[420022409,1775621456807,-2000.0,0.00016,2]
[420022410,1775621456817,-153.242235,0.00016,2]
[420022411,1775621456827,-153.242235,0.00016,2]
[420022412,1775621456837,-153.242235,0.00016,2]
[420022413,1775621456846,-153.242235,0.00016,2]
[420022414,1775621456856,-153.242235,0.00016,2]
[420022415,1775621456866,-153.242235,0.00016,2]
[420022416,1775621456876,-153.242235,0.00016,2]
[420022417,1775621456886,-153.242235,0.00016,2]
[420022418,1775621456895,-153.242235,0.00016,2]
[420022419,1775621456905,-153.242244,0.00016,2]
[420022420,1775621456914,-151.0,0.00016,2]
[420022421,1775621456923,-151.0,0.00016,2]
[420022422,1775621456932,-151.0,0.00016,2]
[420022423,1775621456942,-151.0,0.00016,2]
[420022424,1775621456951,-151.0,0.00016,2]
[420022425,1775621456961,-151.0,0.00016,2]
[420022426,1775621456970,-151.0,0.00016,2]
[420022427,1775621456980,-151.0,0.00016,2]
[420022428,1775621456989,-151.0,0.00016,2]
[420022429,1775621456999,-151.0,0.00016,2]
[420022430,1775621457008,-151.0,0.00016,2]
[420022431,1775621457018,-193.741393,0.00016,2]
[420022432,1775621457028,-333.804281,0.00016,2]
[420022433,1775621457037,-151.0,0.00016,2]
[420022434,1775621457047,-151.0,0.00016,2]
[420022435,1775621457057,-151.0,0.00016,2]
[420022436,1775621457066,-151.0,0.00016,2]
[420022437,1775621457075,-151.0,0.00016,2]
[420022438,1775621457084,-151.0,0.00016,2]
[420022439,1775621457094,-151.0,0.00016,2]
[420022440,1775621457103,-151.0,0.00016,2]
[420022441,1775621457113,-151.0,0.00016,2]
[420022442,1775621457122,-151.0,0.00016,2]
[420022443,1775621457132,-151.0,0.00016,2]
[420022444,1775621457141,-151.0,0.00016,2]
[420022445,1775621457151,-151.0,0.00016,2]
[420022446,1775621457160,-151.0,0.00016,2]
[420022447,1775621457170,-151.0,0.00016,2]
[420022448,1775621457179,-151.0,0.00016,2]
[420022449,1775621457188,-333.804281,0.00016,2]
[420022450,1775621457198,-151.0,0.00016,2]
[420022451,1775621457206,-151.0,0.00016,2]
[420022452,1775621457216,-333.804281,0.00016,2]
[420022453,1775621457225,-151.0,0.00016,2]
[420022454,1775621457235,-151.0,0.00016,2]
[420022455,1775621457245,-333.804281,0.00016,2]
[420022456,1775621457255,-151.0,0.00016,2]
[420022457,1775621457264,-151.0,0.00016,2]
[420022458,1775621457274,-333.804281,0.00016,2]
[420022459,1775621457283,-151.0,0.00016,2]
[420022460,1775621457292,-297.952541,0.00016,2]
[420022461,1775621457301,-333.804281,0.00016,2]
[420022462,1775621457310,-333.804281,0.00016,2]
[420022463,1775621457320,-333.804281,0.00016,2]
[420022464,1775621457329,-333.804281,0.00016,2]
[420022465,1775621457340,-151.0,0.00016,2]
[420022466,1775621457350,-151.0,0.00016,2]
[420022467,1775621457360,-151.0,0.00016,2]
[420022468,1775621457369,-151.0,0.00016,2]
[420022469,1775621457379,-333.804281,0.00016,2]
[420022470,1775621457389,-333.804281,0.00016,2]
[420022471,1775621457399,-333.804279,0.00016,2]
[420022472,1775621457408,-151.0,0.00016,2]
[420022473,1775621457418,-245.185845,0.00016,2]
[420022474,1775621457428,-151.0,0.00016,2]
[420022475,1775621457438,-151.0,0.00016,2]
[420022476,1775621457448,-1783.253125,0.00016,2]
[420022477,1775621457458,-1783.253125,0.00016,2]
[420022478,1775621457468,-1783.253125,0.00016,2]
[420022479,1775621457478,-1783.253125,0.00016,2]
[420022480,1775621457488,-1783.253125,0.00016,2]
[420022481,1775621457498,-1783.253125,0.00016,2]
[420022482,1775621457507,-1783.253125,0.00016,2]
[420022483,1775621457517,-1783.253125,0.00016,2]
[420022484,1775621457527,-1783.253125,0.00016,2]
[420022485,1775621457536,-1783.253125,0.00016,2]
[420022486,1775621457546,-1783.253125,0.00016,2]
[420022487,1775621457556,-1783.253128,0.00016,2]
[420022488,1775621457566,-175.533937,0.00016,2]
[420022489,1775621457575,-175.533937,0.00016,2]
[420022490,1775621457585,-1000.0,0.00016,60]
[420022491,1775621457595,-175.533937,0.00016,2]
[420022492,1775621457605,-175.533937,0.00016,2]
[420022493,1775621457615,-189.530249,0.00016,2]
[420022494,1775621457624,-175.533937,0.00016,2]
[420022495,1775621457634,-175.533937,0.00016,2]
[420022496,1775621457644,-175.533937,0.00016,2]
[420022497,1775621457653,-323.380748,0.00016,2]
[420022498,1775621457663,-175.533937,0.00016,2]
[420022499,1775621457672,-323.380748,0.00016,2]
[420022500,1775621457682,-175.533937,0.00016,2]
[420022501,1775621457693,-323.380748,0.00016,2]
[420022502,1775621457702,-175.533937,0.00016,2]
[420022503,1775621457712,-151.0,0.00016,2]
[420022504,1775621457722,-323.380748,0.00016,2]
[420022505,1775621457731,-175.533937,0.00016,2]
[420022506,1775621457741,-151.0,0.00016,2]
[420022507,1775621457750,-323.380748,0.00016,2]
[420022508,1775621457760,-175.533939,0.00016,2]
[420022509,1775621457770,-151.0,0.00016,2]
[420022510,1775621457780,-323.380748,0.00016,2]
[420022511,1775621457789,-151.0,0.00016,2]
[420022512,1775621457799,-323.380748,0.00016,2]
[420022513,1775621457808,-151.0,0.00016,2]
[420022514,1775621457818,-323.380748,0.00016,2]
[420022515,1775621457828,-151.0,0.00016,2]
[420022516,1775621457838,-323.380748,0.00016,2]
[420022517,1775621457848,-151.0,0.00016,2]
[420022518,1775621457858,-323.380748,0.00016,2]
[420022519,1775621457867,-151.0,0.00016,2]
[420022520,1775621457877,-151.0,0.00016,2]
[420022521,1775621457886,-323.380748,0.00016,2]
[420022522,1775621457896,-293.61183,0.00016,2]
[420022523,1775621457906,-151.0,0.00016,2]
[420022524,1775621457915,-323.38075,0.00016,2]
[420022525,1775621457925,-151.0,0.00016,2]
[420022526,1775621457935,-151.0,0.00016,2]
[420022527,1775621457945,-151.0,0.00016,2]
[420022528,1775621457955,-151.0,0.00016,2]
[420022529,1775621457964,-151.0,0.00016,2]
[420022530,1775621457973,-151.0,0.00016,2]
[420022531,1775621457983,-151.0,0.00016,2]
[420022532,1775621457993,-151.0,0.00016,2]
[420022533,1775621458002,-151.0,0.00016,2]
[420022534,1775621458011,-151.0,0.00016,2]
[420022535,1775621458020,-151.0,0.00016,2]
[420022536,1775621458030,-151.0,0.00016,2]
[420022537,1775621458041,-151.0,0.00016,2]
[420022538,1775621458051,-151.0,0.00016,2]
[420022539,1775621458061,-203.885856,0.00016,2]
[420022540,1775621458071,-155.140856,0.00016,2]
[420022541,1775621458081,-758154.51231546,0.00016,2]
[420022542,1775621458419,-393.59054954,0.00011625,2]
[420022543,1775621458429,-234.86352628,0.00011625,2]
[420022544,1775621458438,-294.885157,0.00013699,2]
[420022545,1775621458448,-6022.0,0.00014959,2]
[420022546,1775621458459,-23977.63059409,0.00016,2]
[420022547,1775621458477,-14795.88910536,0.00016,2]
[420022548,1775621458489,-19085.12483345,0.00016,2]
[420022549,1775621458564,-26889.8104528,0.00016,2]
[420022550,1775621458579,-43769.52575368,0.00016,2]
[420022551,1775621458592,-269029.99320553,0.00016,2]
[420022552,1775621458613,-154841.9144418,0.00016,2]
[420022553,1775621458624,-13547.821926,0.00016,2]
[420022554,1775621458636,-92649.65427284,0.00016,2]
[420022555,1775621468963,-500.0,0.00010733,2]
[420022556,1775621468995,-500.0,0.00010733,2]
[420022557,1775621469026,-500.0,0.00010733,2]
[420022558,1775621469057,-500.0,0.00010733,2]
[420022559,1775621469089,-500.0,0.00010733,2]
[420022560,1775621469121,-500.0,0.00010733,2]
[420022561,1775621469153,-500.0,0.00010733,2]
[420022562,1775621469184,-500.0,0.00010733,2]
[420022563,1775621469215,-243.76457116,0.00010733,2]
[420022564,1775621469246,-500.0,0.00010733,2]
[420022565,1775621469276,-12.48085768,0.00010733,2]
[420022566,1775621469495,-487.51914232,0.00010733,2]
[420022567,1775621474928,-500.0,0.00010733,2]
[420022568,1775621474958,-500.0,0.00010733,2]
[420022569,1775621474989,-500.0,0.00010733,2]
[420022570,1775621475020,-500.0,0.00010733,2]
[420022571,1775621475056,-500.0,0.00010733,2]
[420022572,1775621475088,-500.0,0.00010733,2]
[420022573,1775621475119,-500.0,0.00010733,2]
[420022574,1775621475149,-500.0,0.00010733,2]
[420022575,1775621475179,-500.0,0.00010733,2]
[420022576,1775621475209,-500.0,0.00010733,2]
[420022577,1775621475415,-0.01,0.00010733,2]
[420022578,1775621481151,-499.99,0.00010733,2]
[420022579,1775621481181,-500.0,0.00010733,2]
[420022580,1775621481210,-501.37015049,0.00010733,2]
[420022581,1775621481240,-500.0,0.00010733,2]
[420022582,1775621481270,-150.0,0.00010733,2]
[420022583,1775621481300,-500.0,0.00010733,2]
[420022584,1775621481332,-500.0,0.00010733,2]
[420022585,1775621481362,-500.0,0.00010733,2]
[420022586,1775621481391,-500.0,0.00010733,2]
[420022587,1775621481422,-500.0,0.00010733,2]
[420022588,1775621481453,-345.51112262,0.00010733,2]
[420022589,1775621481705,-6.26745378,0.00010733,2]
[420022590,1775621559765,259.4,2e-05,2]
[420022591,1775621585725,154.0,0.00010698,2]
[420022592,1775621585975,154.0,0.00010698,2]
[420022593,1775621586255,154.0,0.00010698,2]
[420022594,1775621586803,154.0,0.00010698,2]
[420022595,1775621587045,154.0,0.00010698,2]
[420022596,1775621587314,154.0,0.00010698,2]
[420022597,1775621601574,1574.21,0.00010369,2]
[420022598,1775621632312,150.0,0.00016,120]
[420022599,1775621820646,150.0,0.00016,120]
[420022600,1775621871437,500.0,0.00010122,2]
[420022601,1775621882135,949.52,5.056e-05,2]
[420022602,1775621882480,949.52,5.322e-05,2]
[420022603,1775621882684,949.52,5.589e-05,2]
[420022604,1775621882875,949.52,5.855e-05,2]
[420022605,1775621883069,701.93,6.121e-05,2]
[420022606,1775621883094,247.59,6.121e-05,2]
[420022607,1775621883281,949.52,6.387e-05,2]
[420022608,1775621883478,949.52,6.653e-05,2]
[420022609,1775621883695,949.52,6.919e-05,2]
[420022610,1775621883891,949.52,7.185e-05,2]
[420022611,1775621884102,949.52,7.451e-05,2]
[420022612,1775621884272,4.82,7.717e-05,2]
[420022613,1775621884296,944.7,7.717e-05,2]
[420022614,1775621885718,949.52,7.984e-05,2]
[420022615,1775621885753,949.52,8.25e-05,2]
[420022616,1775621885795,949.52,8.516e-05,2]
[420022617,1775621885857,949.52,8.782e-05,2]
[420022618,1775621885939,257.23,9.048e-05,2]
[420022619,1775621885964,692.29,9.048e-05,2]
[420022620,1775621886034,949.52,9.314e-05,2]
[420022621,1775621886137,949.52,9.58e-05,2]
[420022622,1775621886178,949.52,9.846e-05,2]
[420022623,1775621886251,949.52,0.00010112,2]
[420022624,1775622014692,150.64,8.121e-05,2]
[420022625,1775622014938,150.64,9.136e-05,2]
[420022626,1775622015128,150.64,0.00010151,2]
[420022627,1775622076956,152.16,9.508e-05,2]
[420022628,1775622077381,266.28,9.511e-05,2]
[420022629,1775622078078,342.36,9.514e-05,2]
[420022630,1775622141370,-702.83254622,0.00010733,2]
[420022631,1775622141398,-250.0,0.00010773,2]
[420022632,1775622141423,-5000.0,0.00010776,2]
[420022633,1775622141448,-193.41865489,0.00010778,2]
[420022634,1775622141474,-150.0,0.00010778,2]
[420022635,1775622141498,-5000.0,0.00010799,2]
[420022636,1775622141534,-2551.62037868,0.00010799,2]
[420022637,1775622141563,-5533.0,0.000108,2]
[420022638,1775622141589,-250.0,0.00010804,2]
[420022639,1775622141613,-150.0,0.00010804,2]
[420022640,1775622141638,-150.0,0.00010804,2]
[420022641,1775622141663,-150.0,0.00010804,2]
[420022642,1775622141690,-300.0,0.00010839,2]
[420022643,1775622141715,-300.0,0.0001084,2]
[420022644,1775622141742,-300.0,0.0001084,2]
[420022645,1775622141768,-1200.0,0.00010841,2]
[420022646,1775622141794,-300.0,0.00010841,2]
[420022647,1775622141819,-1200.0,0.00010842,2]
[420022648,1775622141843,-500.0,0.0001085,2]
[420022649,1775622141868,-420.12756453,0.0001085,2]
[420022650,1775622141892,-150.0,0.0001085,2]
[420022651,1775622141916,-500.0,0.0001085,2]
[420022652,1775622141941,-150.0,0.0001085,2]
[420022653,1775622141965,-153.37566176,0.0001085,2]
[420022654,1775622141989,-500.0,0.0001085,2]
[420022655,1775622142015,-272.94970253,0.0001085,2]
[420022656,1775622142040,-500.0,0.0001085,2]
[420022657,1775622142064,-500.0,0.0001085,2]
[420022658,1775622142090,-500.0,0.0001085,2]
[420022659,1775622142114,-500.0,0.0001085,2]
[420022660,1775622142146,-576.83643244,0.0001085,2]
[420022661,1775622142172,-150.0,0.0001085,2]
[420022662,1775622142199,-4142.316,0.00010902,2]
[420022663,1775622142224,-325.827,0.00010902,2]
[420022664,1775622142249,-2326.6618,0.00010902,2]
[420022665,1775622142274,-1165.4372,0.00010902,2]
[420022666,1775622142299,-1000.0,0.00010905,2]
[420022667,1775622142324,-4706.7984,0.00010905,2]
[420022668,1775622142351,-2500.0,0.00010905,2]
[420022669,1775622142376,-613.47239515,0.00010932,2]
[420022670,1775622142405,-5333.97608147,0.00010932,2]
[420022671,1775622142431,-242.88841536,0.00010975,2]
[420022672,1775622142457,-78088.91235443,0.00010994,2]
[420022673,1775622194932,150.0,0.00016,120]
[420022674,1775622268125,5000.01,0.0001006,2]
[420022675,1775622268152,5000.01,0.0001006,2]
[420022676,1775622268178,5000.01,0.0001006,2]
[420022677,1775622268208,5000.01,0.0001006,2]
[420022678,1775622268233,5000.01,0.0001006,2]
[420022679,1775622268256,3607.41,0.0001006,2]
[420022680,1775622313980,165.0,0.00010699,2]
[420022681,1775622314015,155.0,0.00010699,2]
[420022682,1775622314778,150.0,0.00010011,2]
[420022683,1775622314828,150.0,0.00010097,2]
[420022684,1775622314896,150.0,0.00010182,2]
[420022685,1775622314981,150.0,0.00010268,2]
[420022686,1775622315042,150.0,0.00010353,2]
[420022687,1775622315109,150.0,0.00010439,2]
[420022688,1775622315187,150.0,0.00010524,2]
[420022689,1775622315253,150.0,0.0001061,2]
[420022690,1775622315319,150.0,0.00010695,2]
[420022691,1775622316552,150.0,0.00010011,2]
[420022692,1775622316581,150.0,0.0001015,2]
[420022693,1775622316623,150.0,0.00010289,2]
[420022694,1775622316658,150.0,0.00010428,2]
[420022695,1775622316689,150.0,0.00010567,2]
[420022696,1775622317363,150.0,0.00010011,2]
[420022697,1775622317408,150.0,0.00010135,2]
[420022698,1775622317476,150.0,0.00010258,2]
[420022699,1775622317555,150.0,0.00010382,2]
[420022700,1775622317626,150.0,0.00010505,2]
[420022701,1775622317688,150.0,0.00010629,2]
[420022702,1775622317755,153.0,0.00010699,2]
[420022703,1775622321732,150.0,0.00010011,2]
[420022704,1775622321792,150.0,0.00010567,2]
[420022705,1775622321970,150.0,0.00010011,2]
[420022706,1775622322017,150.0,0.00010233,2]
[420022707,1775622322063,150.0,0.00010456,2]
[420022708,1775622322142,150.0,0.00010678,2]
[420022709,1775622324713,150.0,0.00010011,2]
[420022710,1775622324743,150.0,0.0001008,2]
[420022711,1775622324802,150.0,0.0001015,2]
[420022712,1775622324878,150.0,0.0001022,2]
[420022713,1775622325082,27.01,0.00010289,2]
[420022714,1775622325106,122.99,0.00010289,2]
[420022715,1775622325140,150.0,0.00010359,2]
[420022716,1775622325171,150.0,0.00010498,2]
[420022717,1775622325200,150.0,0.00010428,2]
[420022718,1775622325230,150.0,0.00010567,2]
[420022719,1775622325301,150.0,0.00010637,2]
[420022720,1775622325432,1852.42,9.97e-05,2]
[420022721,1775622331444,257.21753866,0.00010011,2]
[420022722,1775622331517,154.96470643,0.00010011,2]
[420022723,1775622331591,150.0,0.00010011,2]
[420022724,1775622331621,150.0,0.00010135,2]
[420022725,1775622331680,150.0,0.00010258,2]
[420022726,1775622331750,150.0,0.00010382,2]
[420022727,1775622331821,150.0,0.00010505,2]
[420022728,1775622331893,150.0,0.00010629,2]
[420022729,1775622332426,962.41775491,9.957e-05,2]
[420022730,1775622332449,537.58224509,9.957e-05,2]
[420022731,1775622332551,235.51154759,0.00010011,2]
[420022732,1775622339959,150.0,0.00010011,2]
[420022733,1775622339994,150.0,0.00010097,2]
[420022734,1775622340076,150.0,0.00010182,2]
[420022735,1775622340143,150.0,0.00010268,2]
[420022736,1775622340209,150.0,0.00010353,2]
[420022737,1775622340282,150.0,0.00010439,2]
[420022738,1775622340353,150.0,0.00010524,2]
[420022739,1775622340426,150.0,0.0001061,2]
[420022740,1775622340503,150.0,0.00010695,2]
[420022741,1775622341480,150.0,0.00010011,2]
[420022742,1775622341525,150.0,0.00010233,2]
[420022743,1775622341560,150.0,0.00010456,2]
[420022744,1775622341591,150.0,0.00010678,2]
[420022745,1775622355126,2276.91620732,0.00010037,2]
[420022746,1775622355150,1049.16379268,0.00010037,2]
[420022747,1775622366558,155.0,0.00010699,2]
[420022748,1775622368893,153.0,0.00010699,2]
[420022749,1775622381776,267.45,0.00016,120]
[420022750,1775622428637,155.0,0.00010699,2]
[420022751,1775622430218,153.0,0.00010699,2]
[420022752,1775622457109,400.0,0.000105,3]
[420022753,1775622459194,800.0,0.000106,3]
[420022754,1775622480983,-1200.0,0.000107,3]
[420022755,1775622481016,-150.0,0.00010706,2]
[420022756,1775622481049,-150.0,0.00010706,2]
[420022757,1775622481080,-150.0,0.00010725,2]
[420022758,1775622481110,-500.0,0.00010725,2]
[420022759,1775622481141,-500.0,0.00010725,2]
[420022760,1775622481178,-500.0,0.00010725,2]
[420022761,1775622481210,-500.0,0.00010725,2]
[420022762,1775622481244,-500.0,0.00010725,2]
[420022763,1775622481277,-500.0,0.00010725,2]
[420022764,1775622481310,-200.01,0.00010725,2]
[420022765,1775622481527,-299.99,0.00010725,2]
[420022766,1775622481560,-500.0,0.00010725,2]
[420022767,1775622481593,-500.0,0.00010725,2]
[420022768,1775622481626,-500.0,0.00010725,2]
[420022769,1775622481658,-500.0,0.00010725,2]
[420022770,1775622481692,-381.23774932,0.00010725,2]
[420022771,1775622481728,-150.0,0.00010753,2]
[420022772,1775622481771,-150.0,0.00010753,2]
[420022773,1775622481803,-150.0,0.00010776,2]
[420022774,1775622481837,-150.0,0.00010781,2]
[420022775,1775622481870,-150.0,0.00010781,2]
[420022776,1775622481905,-1087.30418965,0.000108,2]
[420022777,1775622482444,-300.0,0.00010724,2]
[420022778,1775622482454,-544.18387138,0.000108,3]
[420022779,1775622483703,-1055.81612862,0.000108,3]
[420022780,1775622483737,-150.0,0.00010845,2]
[420022781,1775622483774,-150.0,0.00010845,2]